Cogmind - Beta 13 @@@ ROGUE MODE // 2024.04.24 @ 21:15:35 Player: Bace Troncons Result: Destroyed self with Grenade Launcher Performance ------------- Evolutions (0) 0 Regions Visited (4) 800 Robots Destroyed (20) 100 Value Destroyed (483) 483 Prototype IDs (25) 500 Alien Tech Used (0) 0 Bonus (300) 300 TOTAL SCORE: 2183 Bonus ------- Aligned with FarCom 300 Cogmind --------- Core Integrity 0/250 Matter 226/300 Energy 159/160 System Corruption 0% Temperature Cool (0) Movement Treading (240) Ox1 Location -9/Mines Parts ------- > --- POWER (1) -------- Light Nuclear Core > --- PROPULSION (2) --- Light Treads > --- UTILITY (2) ------ Large Storage Unit Hacking Suite > --- WEAPON (2) ------- Light Assault Rifle Grenade Launcher > --- INVENTORY (15) --- Aluminum Leg Aluminum Leg Aluminum Leg Medium Storage Unit Targeting Computer Cloak of Protection Core Shielding Utility Shielding Light Assault Rifle Datajack Datajack Hammer Peak State ------------ > --- POWER ------------ Light Nuclear Core > --- PROPULSION ------- Light Treads > --- UTILITY ---------- Large Storage Unit Hacking Suite > --- WEAPON ----------- Heavy Assault Rifle Light Cannon > --- INVENTORY -------- Aluminum Leg Aluminum Leg Aluminum Leg Medium Storage Unit Targeting Computer Cloak of Protection Core Shielding Utility Shielding Light Assault Rifle Light Assault Rifle Grenade Launcher Datajack Datajack Hammer [Rating: 13] Favorites ----------- Power Light Ion Engine Engine Light Ion Engine Power Core Light Nuclear Core Propulsion Light Treads Treads Light Treads Utility Large Storage Unit Storage Large Storage Unit Processor Visual Processing Unit Hackware Hacking Suite Weapon Light Assault Rifle Ballistic Gun Light Assault Rifle Ballistic Cannon Light Cannon Launcher Grenade Launcher Impact Weapon Hammer Build | -11 -10 -10 -10 -9 ------- Run | Yrd Mat Min Exi Min Slots Evolved . | . . . . . Power . | . . . . . Propulsion . | . . . . . Utility . | . . . . . Weapon . | . . . . . Parts Attached 23 | 6 13 . . 4 Power 5 | 1 3 . . 1 Engine 4 | 1 3 . . . Core 1 | . . . . 1 Reactor . | . . . . . Propulsion 2 | 2 . . . . Treads 2 | 2 . . . . Leg . | . . . . . Wheel . | . . . . . Hover . | . . . . . Flight . | . . . . . Utility 6 | 1 5 . . . Device . | . . . . . Storage 4 | 1 3 . . . Processor 1 | . 1 . . . Hackware 1 | . 1 . . . Protection . | . . . . . Artifact . | . . . . . Weapon 10 | 2 5 . . 3 Energy Gun . | . . . . . Energy Cannon . | . . . . . Ballistic Gun 6 | 2 2 . . 2 Ballistic Cannon 2 | . 2 . . . Launcher 1 | . . . . 1 Special Weapon . | . . . . . Impact Weapon 1 | . 1 . . . Slashing Weapon . | . . . . . Piercing Weapon . | . . . . . Special Melee Weapon . | . . . . . Unidentified Prototypes . | . . . . . Parts Lost 5 | . 4 . . 1 Power 2 | . 2 . . . Propulsion 1 | . 1 . . . Utility . | . . . . . Weapon 2 | . 1 . . 1 Highest Loss Streak 2 | . 2 . . 1 To Critical Strikes . | . . . . . Average Slot Usage (%) 88 | . 93 85 85 84 Engine 13 | . 14 14 14 13 Treads 19 | . 26 14 14 14 Storage 14 | . 14 14 14 14 Processor 2 | . 5 . . . Hackware 9 | . 3 14 14 14 Ballistic Gun 15 | . 16 14 14 14 Ballistic Cannon 12 | . 10 14 14 13 Naked Turns . | . . . . . Heaviest Build 37 | 12 37 27 27 29 Greatest Support 40 | 40 40 20 20 20 Greatest Overweight (x) 3 | 3 1 1 1 1 Average Overweight (x) . | . . 1 1 1 Largest Inventory Capacity 15 | 8 15 15 15 15 Average Capacity 14 | 7 13 15 15 15 Most Carried 15 | 3 15 13 14 15 Average Carried 12 | 1 12 13 13 14 Final Capacity 15 | 8 15 15 15 15 Final Carried 14 | 3 13 13 14 12 Class Distribution -------------------- 100% | Mutant Dominant Class ---------------- Mutant | -10/Materials Mutant | -10/Mines Mutant | -10/Exiles Mutant | -9/Mines Resources | -11 -10 -10 -10 -9 ----------- Run | Yrd Mat Min Exi Min Matter Collected 656 | 182 454 . . 20 Remotely . | . . . . . Salvage Created 612 | . 612 . . . Parts 33 | . 33 . . . Haulers Intercepted 2 | . 2 . . . Recyclers Shooed . | . . . . . Parts Field Recycled . | . . . . . Retrieved Matter . | . . . . . Parts Self-Destructed . | . . . . . Prevented . | . . . . . Kills | -11 -10 -10 -10 -9 ------- Run | Yrd Mat Min Exi Min Combat Hostiles Destroyed 16 | . 16 . . . Guns 9 | . 9 . . . Cannons 7 | . 7 . . . Classes Destroyed 5 | . 5 . . . Hauler 2 | . 2 . . . Operator 1 | . 1 . . . Watcher 1 | . 1 . . . Swarmer 5 | . 5 . . . Grunt 11 | . 11 . . . Best Kill Streak 3 | . 3 . . . Combat Bots Only 3 | . 3 . . . Max Kills in Single Turn 2 | . 2 . . . Gunslinging . | . . . . . Exploded . | . . . . . Melee . | . . . . . Uniques/NPCs Destroyed . | . . . . . Combat | -11 -10 -10 -10 -9 -------- Run | Yrd Mat Min Exi Min Hostile Shots Fired 118 | . 107 . . 11 Missed 22 | . 19 . . 3 Damage Taken 1233 | . 913 . . 320 Core 253 | . 159 . . 94 Absorbed by Shields . | . . . . . Regen/Repaired (Parts) 79 | . 79 . . . Core Remaining (%) 100 | 100 . . . . Volleys Fired 88 | . 79 . . 9 Largest 2 | . 2 . . 2 Hottest 58 | . 55 . . 58 Shots Fired 170 | . 155 . . 15 Gun 128 | . 119 . . 9 Cannon 40 | . 36 . . 4 Launcher 2 | . . . . 2 Special . | . . . . . Kinetic 168 | . 155 . . 13 Thermal . | . . . . . Explosive 2 | . . . . 2 Electromagnetic . | . . . . . Robot Hit Streak 21 | . 20 . . 21 Robot Miss Streak 9 | . 9 . . 1 Penetration Max . | . . . . . Secondary Targets . | . . . . . Shots Hit Robots 117 | . 104 . . 13 Core Hits 38 | . 35 . . 3 Critical Kills . | . . . . . Critical Parts Destroyed 1 | . 1 . . . Critical Strikes 4 | . 4 . . . Destroy 1 | . 1 . . . Blast 3 | . 3 . . . Melee Attacks 1 | . 1 . . . Impact 1 | . 1 . . . Slashing . | . . . . . Piercing . | . . . . . Sneak Attacks . | . . . . . Combat Hostiles . | . . . . . Follow-up Attacks . | . . . . . Damage Inflicted 1367 | . 1154 . . 213 Guns 774 | . 649 . . 125 Cannons 538 | . 505 . . 33 Explosions 55 | . . . . 55 Melee . | . . . . . Ramming . | . . . . . Kinetic 1312 | . 1154 . . 158 Thermal . | . . . . . Explosive 55 | . . . . 55 Electromagnetic . | . . . . . Impact . | . . . . . Slashing . | . . . . . Piercing . | . . . . . Highest Corruption . | . . . . . Average Corruption . | . . . . . Corruption Purged . | . . . . . Corruption Blocked . | . . . . . Overload Shots . | . . . . . Overflow Damage . | . . . . . Projectiles . | . . . . . Explosions . | . . . . . Melee . | . . . . . Knockbacks 6 | . 6 . . . Impact . | . . . . . Kinetic 5 | . 5 . . . Secondary 1 | . 1 . . . Self-Inflicted Damage 80 | . . . . 80 Shots 2 | . . . . 2 Rammed . | . . . . . Targets Rammed . | . . . . . Kicked . | . . . . . Crushed . | . . . . . Highest Temperature 40 | . 40 . . 14 Average Temperature 15 | . 15 . . 5 Received Heat Transfer 399 | . 399 . . . Siege Activations . | . . . . . Robots Corrupted . | . . . . . Combat Hostiles . | . . . . . Parts Fried . | . . . . . Impact Corruptions . | . . . . . Robots Melted . | . . . . . Combat Hostiles . | . . . . . Parts Melted . | . . . . . Heat Transferred . | . . . . . Parts Sabotaged . | . . . . . Parts Stolen . | . . . . . Parts Stripped . | . . . . . Power Chain Reactions . | . . . . . Alert | -11 -10 -10 -10 -9 ------- Run | Yrd Mat Min Exi Min Peak Influence 218 | . 218 25 . 11 Initial 25 | . . 25 . . Average 39 | . 63 25 . . Maximum Alert Level 1 | . 1 . . . Low Security (%) 97 | 100 96 100 . 100 Level 1 2 | . 3 . . . Level 2 . | . . . . . Level 3 . | . . . . . Level 4 . | . . . . . Level 5 . | . . . . . High Security . | . . . . . Max Security . | . . . . . Squads Dispatched 4 | . 4 . . . Investigation 3 | . 3 . . . Extermination . | . . . . . Reinforcement 1 | . 1 . . . Assault . | . . . . . Garrison . | . . . . . Intercept . | . . . . . Searches Triggered . | . . . . . Construction Impeded . | . . . . . Haulers Reinforced . | . . . . . Active Scanning Responses . | . . . . . Cargo Convoy Interrupts . | . . . . . Stealth | -11 -10 -10 -10 -9 --------- Run | Yrd Mat Min Exi Min Distress Signals 1 | . 1 . . . Communications Jammed . | . . . . . Distress Signals . | . . . . . Times Spotted 37 | . 34 . . 3 Peak Tracking Total 5 | . 5 . . 3 Tactical Retreats 6 | . 6 . . . Traps | -11 -10 -10 -10 -9 ------- Run | Yrd Mat Min Exi Min Traps Triggered 2 | . 2 . . . Indirectly . | . . . . . Trap Hack Attempts . | . . . . . Triggered . | . . . . . Disarmed 6 | . 6 . . . Reprogrammed . | . . . . . Reused . | . . . . . Traps Extracted . | . . . . . Installed . | . . . . . Triggered . | . . . . . Machines | -11 -10 -10 -10 -9 ---------- Run | Yrd Mat Min Exi Min Machines Disabled 1 | . 1 . . . Max in Single Turn 1 | . 1 . . . Machines Repaired . | . . . . . Machines Dismantled . | . . . . . Machines Sabotaged . | . . . . . Overloaded Fab Kills . | . . . . . Hacking | -11 -10 -10 -10 -9 --------- Run | Yrd Mat Min Exi Min Machines Accessed 11 | . 10 . 1 . Terminals 8 | . 8 . . . Fabricators . | . . . . . Repair Stations 1 | . 1 . . . Recycling Units 1 | . 1 . . . Scanalyzers . | . . . . . Garrison Access . | . . . . . Total Hacks 33 | . 32 . 1 . Successful 15 | . 14 . 1 . Failed 18 | . 18 . . . Catastrophic 5 | . 5 . . . Database Lockouts . | . . . . . Manual 10 | . 9 . 1 . Terminals 28 | . 28 . . . Fabricators . | . . . . . Repair Stations 2 | . 2 . . . Recycling Units 2 | . 2 . . . Scanalyzers . | . . . . . Garrison Access . | . . . . . Terminal Hacks 12 | . 11 . 1 . Prototype ID Bank 1 | . 1 . . . Emergency Access Points 1 | . 1 . . . Terminal Index 1 | . 1 . . . Alert Level 1 | . 1 . . . Unreport Threat 1 | . 1 . . . Locate Traps 1 | . 1 . . . Disarm Traps 1 | . 1 . . . Dispatch Records 1 | . 1 . . . Surveillance Status 1 | . 1 . . . Transport Status 1 | . 1 . . . Hauler Manifests 1 | . 1 . . . Derelict Proto ID Bank 1 | . . . 1 . Fabricator Hacks . | . . . . . Repair Station Hacks 2 | . 2 . . . Scan Component 1 | . 1 . . . Repair 1 | . 1 . . . Recycling Unit Hacks 1 | . 1 . . . Retrieve Components 1 | . 1 . . . Scanalyzer . | . . . . . Garrison Access Hacks . | . . . . . Unauthorized Hacks . | . . . . . Terminals . | . . . . . Fabricators . | . . . . . Repair Stations . | . . . . . Recycling Units . | . . . . . Scanalyzers . | . . . . . Garrison Access . | . . . . . Data Cores Recovered . | . . . . . Used . | . . . . . Hacking Detections 8 | . 8 . . . Full Trace Events 2 | . 2 . . . Feedback Events . | . . . . . Feedback Blocked . | . . . . . Robot Schematics Acquired . | . . . . . Robots Built . | . . . . . Authchips . | . . . . . Time . | . . . . . Total Robot Build Rating . | . . . . . Part Schematics Acquired . | . . . . . Parts Built . | . . . . . Authchips . | . . . . . Time . | . . . . . Total Part Build Rating . | . . . . . Parts Repaired 1 | . 1 . . . Time 26 | . 26 . . . Parts Recycled . | . . . . . Recycled Matter . | . . . . . Retrieved Matter . | . . . . . Retrieved Components 9 | . 9 . . . Parts Scanalyzed . | . . . . . Part Schematics Acquired . | . . . . . Parts Damaged . | . . . . . Bothacking | -11 -10 -10 -10 -9 ------------ Run | Yrd Mat Min Exi Min Used RIF Installer . | . . . . . Robots Hacked . | . . . . . Non-combat . | . . . . . Combat . | . . . . . Robot Hacks Applied . | . . . . . Relay Couplers Released . | . . . . . Fabnet Peak Effective % . | . . . . . Robots Rewired . | . . . . . Allies Hacked . | . . . . . Hacks Repelled . | . . . . . Allies | -11 -10 -10 -10 -9 -------- Run | Yrd Mat Min Exi Min Total Allies . | . . . . . Largest Group . | . . . . . Highest-Rated Group . | . . . . . Highest-Rated Ally . | . . . . . Total Orders . | . . . . . Ally Attacks . | . . . . . Total Damage . | . . . . . Kills . | . . . . . Allies Corrupted . | . . . . . Allies Melted . | . . . . . Intel | -11 -10 -10 -10 -9 ------- Run | Yrd Mat Min Exi Min Robot Analysis Total . | . . . . . Derelict Logs Recovered 1 | . . . . 1 Drone Launches . | . . . . . Drone Recoveries . | . . . . . Exploration | -11 -10 -10 -10 -9 ------------- Run | Yrd Mat Min Exi Min Turns Passed 3690 | 78 1728 329 713 842 Spaces Moved 1642 | 42 837 138 297 328 Core 11 | 11 . . . . Treads 1631 | 31 837 138 297 328 Legs . | . . . . . Wheels . | . . . . . Hover . | . . . . . Flight . | . . . . . Fastest Speed 50 | 50 160 240 240 240 Average Speed 201 | 160 169 240 240 240 Slowest Speed 240 | 200 240 240 240 240 Overloaded Moves . | . . . . . Propulsion Burnouts . | . . . . . Robots Hopped . | . . . . . Cave-ins Triggered . | . . . . . Exploration Rate (%) 54 | 3 98 39 72 58 Regions Visited 4 Branch Regions 3 Pre-discovered Areas . | . . . . . Known Exits Taken . | . . . . . Unknown Exits Taken 4 | 1 1 1 1 . Scrap Searched 1 | . . . . 1 Spaces Dug 1 | . 1 . . . Terrain Destroyed 12 | . 1 . . 11 Melee 1 | . 1 . . . Projectile . | . . . . . AOE 11 | . . . . 11 Terrain Rammed . | . . . . . Walls Destroyed . | . . . . . Machines Disabled . | . . . . . Actions | -11 -10 -10 -10 -9 --------- Run | Yrd Mat Min Exi Min Total 1870 | 50 1015 137 298 370 Wait 95 | . 66 . . 29 Move 1638 | 41 836 137 296 328 Hop . | . . . . . Pick Up 19 | 3 15 . 1 . Fast Attach 9 | 6 3 . . . Attach 7 | . 4 . . 3 Detach 2 | . 2 . . . Swap 7 | . 6 . . 1 Drop 3 | . 3 . . . Fire 88 | . 79 . . 9 Melee 1 | . 1 . . . Ram . | . . . . . Kick . | . . . . . Crush . | . . . . . Escape Stasis . | . . . . . Rewire 1 | . . . 1 . Trap . | . . . . . Miscellaneous . | . . . . . Route ------- -11/Scrapyard -10/Materials (discovered 4 exits: [*Mat x3] / [*Min]) -10/Mines (discovered 2 exits: [*Mat] / *Exi) -10/Exiles -9/Mines (discovered 2 exits: [*Mat x2]) History --------- Turn | Location | Event 19 | -11/Scrapyard | Discovered new exit (range 16) 79 | -11/Scrapyard | Entered Materials 314 | -10/Materials | Build established: Mutant 521 | -10/Materials | Discovered new exit (range 16) 959 | -10/Materials | Discovered new exit (range 17) 1035 | -10/Materials | Repaired Lgt. Assault Rifle 1172 | -10/Materials | Discovered new exit (range 12) 1232 | -10/Materials | Core integrity fell below 50% 1484 | -10/Materials | Discovered new exit (range 16) 1807 | -10/Materials | Entered Mines 1865 | -10/Mines | Discovered new exit (range 10) 2124 | -10/Mines | Deemed a non-threat by the Exiles lab entrance 2127 | -10/Mines | Discovered new exit (range 5) 2136 | -10/Mines | Entered Exiles 2194 | -10/Exiles | Met 8R-AWN 2235 | -10/Exiles | Met EX-HEX 2304 | -10/Exiles | Met EX-BIN 2338 | -10/Exiles | Aligned with FarCom system 2340 | -10/Exiles | Given EX-Vault access code 2405 | -10/Exiles | Opened EX-Vault 2436 | -10/Exiles | Found Cloak of Protection 2485 | -10/Exiles | Warned to stay clear of 0b10 Research branches 2555 | -10/Exiles | Met EX-DEC 2830 | -10/Exiles | Discovered new exit (range 10) 2849 | -10/Exiles | Left Exiles lab with Cloak of Protection 2849 | -10/Exiles | Entered Mines 3005 | -9/Mines | Learned location of 1 exit from Materials 3086 | -9/Mines | Discovered new exit (range 13) 3324 | -9/Mines | Discovered new exit (range 9) 3681 | -9/Mines | Core integrity fell below 20% 3691 | -9/Mines | Destroyed self with Grenade Launcher Last Messages --------------- 02849_ Receiving FarCom transmissions... 02879_ T-07 Excavator is excavating. 02956_ K-01 Serf collects debris. 03005_ Acquired derelict log, extracted data. Data stored: Materials exits (x1). 03086_ EXIT=FOUND 03333_ K-01 Serf collects debris. 03625_ Searching scrap... 03625_ Found Hcp. Storage Unit. 03625_ Found 39 Matter. 03625_ Found Hvy. Assault Rifle. 03625_ Found Ion Engine. 03625_ Found 20 Matter. 03637_ Acquired 10 matter. 03668_ Acquired 7 matter. 03668_ Lgt. Ion Engine severed. 03671_ Acquired 3 matter. 03677_ Destroyed Melee Analysis Suite. 03678_ Lgt. Cannon destroyed. 03685_ Hvy. Assault Rifle severed. Map ----- +----------------------------------------------------+ | | | | | | | | | ?????????????????????????????????????? | | ?????????????????????????????????????? | | ?????????????????????????????????????? | | ?????????????????????????????????????? | | ?????????????????????????????????????? | | ?????????????????????????????????????? | | ??????????????###????????????????????? | | ?????????????? ????????????????????? | | ?????????????# ????????????????????? | | ????????????? #????????????????????? | | ?????????????# #????????????????????? | | ?????????????# #????????????????????? | | ?????###?????# #????????????????????? | | ?????# g???### ##???????????????????? | | ?????# #??## ##??????????????????? | | ?????#g#??# ##?????????????????? | | ?????# ##### #?????????????????? | | ?????# ## #?????????????????? | | ?????# ### ## ##?????????????????? | | ?????# #?# ## ###??????????????????? | | ?????# #?# ## l #????????????????????? | | ???### #?# **@! #????????????????????? | | ???# #?## #????????????????????? | | ???# ###??#######????????????????????? | | ???# #???????????????????????????????? | | ???# #???????????????????????????????? | | ???# #???????????????????????????????? | | ???# #???????????????????????????????? | | ???# ###?????????????????????????????? | | ??## ##????????????????????????????? | | ??# ##???????????????????????????? | | ??# #???????????????????????????? | | ??# < #???????????????????????????? | | ??# ##??????????????????????????? | | ??# ##############?????????????? | | ??## #?????????????? | | ???##### #?????????????? | | ???????## ######## #########?????? | | ????????# # #??????# #?????? | | ????????# ####??????######### #?????? | | ??????### #?????????????????# #?????? | | ??????# #??????????????#### ####??? | | ??????# #?#####????????# #??? | | ??????# #### ##???????# #??? | | ??????# ### #???????# """ #??? | | ?????## ##???????# """ #??? | +----------------------------------------------------+ Best States ------------- Heat Dissipation 25 Energy Generation 14 Energy Capacity 250 Matter Stores 300 Matter Capacity 300 Sight Range 18 Terrain Scan Density 10 Evasion (%) 40 Recoil Reduction 2 Offensive Hacking 10 Item Schematics ----------------- None Robot Schematics ------------------ None Fabricated ------------ Nothing Alien Tech Used ----------------- None Achievements -------------- None Challenges ------------ None Game ------ Seed ChargeVortexThruster Manual? 0 Play Time 00:28:15 Cumulative 39.6 hours Start 2024.04.24 @ 20:29:22 End 2024.04.24 @ 21:15:35 Sessions 1 Manual Loads 0 Difficulty Rogue Special Mode None Game No. 64 Rogue 64 Adventurer 0 Explorer 0 Win Type - Total 0 Types 0/0/0/0/0/0/0/0/0 Lore% 22 Gallery% 30 Achievement% 25 Wizard Run 0 Options --------- Layout 1 ASCII 0 Keyboard 1 Movement Numpad Keybinds 0 Fullscreen 1 Font 24/Smallcaps Map View 50x35 Zoom Use 0% Tactical HUD 1 Map Filters NONE Filters NONE Steam 1 RUN: b6b673c4-59d5-419f-89c3-81e1101f3732